fUSD/lending_fUSD_20240301
["ID","MTS","AMOUNT","RATE_DAILY","PERIOD"]
[316046190,1709335845501,-1906.19,0.00022027,2]
[316046191,1709335845511,-7846.4,0.00022027,2]
[316046192,1709335845520,-1446.8,0.00022027,2]
[316046193,1709335845529,-511.86,0.00022027,2]
[316046194,1709335845539,-500.0,0.00022027,2]
[316046195,1709335845548,-500.0,0.00022027,2]
[316046196,1709335845557,-627.61,0.00022027,2]
[316046197,1709335845567,-1713.97,0.00022027,2]
[316046198,1709335845576,-500.0,0.00022027,2]
[316046199,1709335845584,-500.0,0.00022027,2]
[316046200,1709335845594,-1182.8,0.00022027,2]
[316046201,1709335845603,-1496.5,0.00022027,2]
[316046202,1709335845613,-15578.52,0.00022027,2]
[316046203,1709335845622,-2171.25,0.00022027,2]
[316046204,1709335845631,-932.99,0.00022027,2]
[316046205,1709335845641,-369.41566632,0.00022027,2]
[316046206,1709335845654,-130.58433368,0.00022027,2]
[316046207,1709335845664,-3986.75,0.00022027,2]
[316046208,1709335845672,-818.08,0.00022027,2]
[316046209,1709335845682,-500.0,0.00022027,2]
[316046210,1709335845691,-500.0,0.00022027,2]
[316046211,1709335845699,-500.0,0.00022027,2]
[316046212,1709335845709,-500.0,0.00022027,2]
[316046213,1709335845718,-7971.49,0.00022027,2]
[316046214,1709335845727,-11280.04,0.00022027,2]
[316046215,1709335845737,-500.0,0.00022027,2]
[316046216,1709335845746,-500.0,0.00022027,2]
[316046217,1709335845756,-3000.0,0.0002203,2]
[316046218,1709335845766,-3000.0,0.0002204,2]
[316046219,1709335845775,-165.33,0.00022041,2]
[316046220,1709335845784,-3000.0,0.0002205,2]
[316046221,1709335845794,-4035.86101212,0.00022052,2]
[316046222,1709335845803,-3000.0,0.0002206,2]
[316046223,1709335845812,-3000.0,0.0002207,2]
[316046224,1709335845822,-3000.0,0.0002208,2]
[316046225,1709335845831,-189.86757333,0.00022089,2]
[316046227,1709335845840,-3000.0,0.0002209,2]
[316046228,1709335845849,-3000.0,0.000221,2]
[316046229,1709335845858,-3805.76975292,0.000221,2]
[316046230,1709335845868,-250.0,0.000221,2]
[316046231,1709335845877,-250.0,0.000221,2]
[316046232,1709335845887,-250.0,0.000221,2]
[316046233,1709335845896,-250.0,0.000221,2]
[316046234,1709335845906,-250.0,0.000221,2]
[316046235,1709335845916,-250.0,0.000221,2]
[316046236,1709335845925,-452.5,0.000221,2]
[316046237,1709335845935,-200.45,0.000221,2]
[316046238,1709335845945,-12000.0,0.00022107,2]
[316046239,1709335845955,-12000.02,0.00022108,2]
[316046240,1709335845964,-3000.0,0.0002211,2]
[316046241,1709335845973,-3000.0,0.0002212,2]
[316046242,1709335845983,-157.19,0.00022125,2]
[316046243,1709335845992,-3000.0,0.0002213,2]
[316046244,1709335846001,-4035.86101212,0.0002213,2]
[316046245,1709335846011,-11999.99,0.00022132,2]
[316046246,1709335846021,-155.0,0.00022133,2]
[316046247,1709335846030,-667.2,0.00022135,2]
[316046248,1709335846039,-587.21,0.00022135,2]
[316046249,1709335846048,-6549.67927404,0.00022135,2]
[316046250,1709335846061,-1921.67029646,0.00022135,2]
[316046251,1709335846077,-545.74999965,0.00022135,2]
[316046252,1709335846113,500.0,0.00021917,2]
[316046253,1709335846147,913.30913177,0.00021927,2]
[316046254,1709335846538,500.0,0.00021917,2]
[316046262,1709335846851,500.0,0.00021917,2]
[316046263,1709335862674,-500.0,0.00022025,2]
[316046264,1709335862683,-513.97700058,0.00022025,2]
[316046265,1709335862693,-500.0,0.00022025,2]
[316046266,1709335862702,-497.57278861,0.00022025,2]
[316046267,1709335862758,-538.40721139,0.00022025,2]
[316046268,1709335862768,-461.77806583,0.00022027,2]
[316046269,1709335862793,-38.22193417,0.00022027,2]
[316046270,1709335862803,-261.77806583,0.00022027,2]
[316046271,1709335862838,-238.22193417,0.00022027,2]
[316046272,1709335862848,-1348.68774147,0.00022135,2]
[316046273,1709335862899,-500.0,0.00022027,2]
[316046274,1709335862909,-3301.24051439,0.00022135,2]
[316046275,1709335862977,960.58,0.00021917,2]
[316046276,1709335863082,965.44,0.00021917,2]
[316046277,1709335863114,500.0,0.00021917,2]
[316046278,1709335863151,500.0,0.00021917,2]
[316046279,1709335863257,500.0,0.00021917,2]
[316046280,1709335863412,500.0,0.00021917,2]
[316046281,1709335863856,500.0,0.00021917,2]
[316046282,1709335863924,500.0,0.00021917,2]
[316046283,1709335863991,200.0,0.00021121,2]
[316046284,1709335864121,500.0,0.00021917,2]
[316046285,1709335864457,500.0,0.00021917,2]
[316046286,1709335864902,500.0,0.00021917,2]
[316046287,1709335865208,500.0,0.00021917,2]
[316046288,1709335865524,500.0,0.00021917,2]
[316046289,1709335865686,500.0,0.00021917,2]
[316046290,1709335865822,500.0,0.00021917,2]
[316046291,1709335865877,500.0,0.00021917,2]
[316046292,1709335866166,500.0,0.00021917,2]
[316046293,1709335866317,1000.0,0.00021927,2]
[316046294,1709335866567,500.0,0.00021917,2]
[316046295,1709335866638,500.0,0.00021917,2]
[316046296,1709335866827,2941.98,0.00021917,2]
[316046297,1709335867061,500.0,0.00021917,2]
[316046298,1709335867092,500.0,0.00021917,2]
[316046299,1709335867581,18469.2,0.00021917,2]
[316046300,1709335867626,1255.39,0.00021917,2]
[316046301,1709335867817,164.22580288,0.00021913,2]
[316046302,1709335867925,3267.39,0.00021917,2]
[316046303,1709335868400,211.0,0.00021927,2]
[316046304,1709335868471,500.0,0.00021917,2]
[316046305,1709335868892,500.0,0.00021917,2]
[316046306,1709335868987,500.0,0.00021917,2]
[316046307,1709335869058,500.0,0.00021917,2]
[316046308,1709335869368,543.87,0.00019279,2]
[316046309,1709335869480,543.87,0.00021543,2]
[316046310,1709335869519,151.0,0.00020451,2]
[316046311,1709335869578,513.29247662,0.00021917,2]
[316046312,1709335869604,151.0,0.00021136,2]
[316046313,1709335869669,151.0,0.00021821,2]
[316046314,1709335870026,2625.36,0.00021917,2]
[316046315,1709335870117,5000.0,0.00021927,2]
[316046316,1709335870152,500.0,0.00021917,2]
[316046317,1709335870746,500.0,0.00021917,2]
[316046318,1709335870791,500.0,0.00021917,2]
[316046319,1709335871844,682.61,0.00021917,2]
[316046320,1709335872715,1993.8,0.00021917,2]
[316046321,1709335873614,500.0,0.00021917,2]
[316046322,1709335874414,539.56,0.00021917,2]
[316046323,1709335875088,500.0,0.00021917,2]
[316046324,1709335875736,500.0,0.00021917,2]
[316046325,1709335877340,2953.96,0.00021917,2]
[316046326,1709335879236,500.0,0.00021917,2]
[316046327,1709335879758,500.0,0.00021917,2]
[316046328,1709335882327,1705.43,0.00021917,2]
[316046329,1709335882653,500.0,0.00021917,2]
[316046330,1709335883892,500.0,0.00021917,2]
[316046331,1709335884024,500.0,0.00021917,2]
[316046332,1709335884108,500.0,0.00021917,2]
[316046333,1709335884204,164.22580288,0.00021913,2]
[316046334,1709335884475,502.06716643,0.00021917,2]
[316046335,1709335885310,500.0,0.00021917,2]
[316046336,1709335886367,561.3922843,0.00021917,2]
[316046337,1709335888016,500.0,0.00021917,2]
[316046338,1709335889063,500.0,0.00021917,2]
[316046339,1709335889123,500.0,0.00021917,2]
[316046340,1709335889663,500.0,0.00021917,2]
[316046341,1709335889927,664.88,0.00021917,2]
[316046342,1709335891415,651.33,0.00021917,2]
[316046343,1709335891450,940.32,0.00021917,2]
[316046344,1709335891783,4272.54,0.00021917,2]
[316046345,1709335893062,500.0,0.00021917,2]
[316046346,1709335893960,500.0,0.00021917,2]
[316046347,1709335894369,656.86,0.00021917,2]
[316046348,1709335896330,500.0,0.00021917,2]
[316046349,1709335896435,372.25772971,0.00021917,2]
[316046350,1709335897839,667.21,0.00021917,2]
[316046351,1709335899253,164.22580289,0.00021913,2]
[316046352,1709335900487,1076.12,0.00021917,2]
[316046353,1709335900942,1251.4,0.00021917,2]
[316046354,1709335902205,500.0,0.00021917,2]
[316046355,1709335902639,500.0,0.00021917,2]
[316046356,1709335903591,2112.85,0.00021917,2]
[316046357,1709335904302,250.0,0.00021179,2]
[316046358,1709335904694,500.0,0.00021917,2]
[316046359,1709335905037,864.5,0.00021917,2]
[316046360,1709335905188,500.0,0.00021917,2]
[316046361,1709335905755,500.0,0.00021917,2]
[316046362,1709335906056,463.66762273,0.00021917,2]
[316046363,1709335907248,500.0,0.00021917,2]
[316046364,1709335908682,500.0,0.00021917,2]
[316046365,1709335910043,500.0,0.00021917,2]
[316046366,1709335910077,500.0,0.00021917,2]
[316046367,1709335910157,500.0,0.00021917,2]
[316046368,1709335912234,766.25,0.00021917,2]
[316046369,1709335913305,3742.1,0.00021917,2]
[316046370,1709335914746,767.14,0.00021917,2]
[316046371,1709335917543,1470.24,0.00021917,2]
[316046372,1709335918596,500.0,0.00021917,2]
[316046373,1709335919805,363.90797229,0.00021999,2]
[316046374,1709335923655,155.0,0.00021999,2]
[316046375,1709335924612,840.22,0.00021917,2]
[316046376,1709335924679,363.71330657,0.00021917,2]
[316046377,1709335925366,1779.68,0.00021917,2]
[316046378,1709335925590,500.0,0.00021917,2]
[316046379,1709335926338,3229.0,0.00021915,2]
[316046380,1709335926552,500.0,0.00021917,2]
[316046381,1709335928018,55555.0,0.00021927,2]
[316046382,1709335928400,500.0,0.00021917,2]
[316046383,1709335931496,500.0,0.00021917,2]
[316046384,1709335932569,1335.6,0.00021917,2]
[316046385,1709335933164,500.0,0.00021917,2]
[316046386,1709335933415,541.8,0.00021917,2]
[316046387,1709335934377,500.0,0.00021917,2]
[316046388,1709335935428,500.0,0.00021917,2]
[316046389,1709335935548,500.0,0.00021917,2]
[316046390,1709335935855,412.74059746,0.00021917,2]
[316046391,1709335938492,179.57,0.00021184,2]
[316046392,1709335939085,2207.67,0.00021917,2]
[316046393,1709335939671,500.0,0.00021917,2]
[316046394,1709335940465,500.0,0.00021917,2]
[316046395,1709335942760,1065.37,0.00021917,2]
[316046396,1709335942803,502.96,0.00021917,2]
[316046397,1709335943519,585.68,0.00021917,2]
[316046398,1709335944032,1008.36,0.00021917,2]
[316046399,1709335944207,500.0,0.00021917,2]
[316046400,1709335944288,502.35941134,0.00021917,2]
[316046401,1709335945859,200.0,0.000219,2]
[316046402,1709335947771,1000.47,0.00021917,2]
[316046403,1709335950398,500.0,0.00021917,2]
[316046404,1709335952694,500.0,0.00021917,2]
[316046405,1709335953237,500.0,0.00021917,2]
[316046406,1709335956212,500.0,0.00021917,2]
[316046407,1709335957327,500.0,0.00021917,2]
[316046408,1709335957435,500.0,0.00021917,2]
[316046409,1709335957503,500.0,0.00021917,2]
[316046410,1709335957780,801.1,0.00021917,2]
[316046411,1709335958272,558.86,0.00021917,2]
[316046412,1709335958375,500.0,0.00021917,2]
[316046413,1709335959157,500.0,0.00021917,2]
[316046414,1709335959551,500.0,0.00021917,2]
[316046415,1709335964089,500.0,0.00021917,2]
[316046416,1709335965051,500.0,0.00021917,2]
[316046417,1709335966560,2750.0,0.000219,2]
[316046418,1709335966720,521.68939932,0.00021917,2]
[316046419,1709335967045,651.01,0.00021917,2]
[316046420,1709335968150,537.68,0.00021917,2]
[316046421,1709335968896,850.48,0.00021917,2]
[316046422,1709335968956,500.0,0.00021917,2]
[316046423,1709335969123,1113.66,0.00021917,2]
[316046424,1709335971237,7192.53,0.00021917,2]
[316046425,1709335973532,683.59,0.00021917,2]
[316046426,1709335974687,236.28642678,0.00021917,2]
[316046427,1709335978354,552.25128534,0.00021917,2]
[316046428,1709335978763,500.0,0.00021917,2]
[316046429,1709335981142,500.0,0.00021917,2]
[316046430,1709335982437,2434.0,0.00021999,2]
[316046431,1709335983025,500.0,0.00021917,2]
[316046432,1709335983159,500.0,0.00021917,2]
[316046433,1709335983422,500.0,0.00021917,2]
[316046434,1709335983966,911.31,0.00021917,2]
[316046435,1709335983999,1887.51,0.00021917,2]
[316046436,1709335984685,500.0,0.00021917,2]
[316046437,1709335985890,549.98,0.00021917,2]
[316046438,1709335986355,542.91,0.00021174,2]
[316046439,1709335986811,523.15027549,0.00021917,2]
[316046440,1709335987554,500.0,0.00021917,2]
[316046441,1709335987652,1084.23,0.00021917,2]
[316046442,1709335987742,500.0,0.00021917,2]
[316046443,1709335988792,834.72160056,0.000219,2]
[316046444,1709335989207,556203.79,0.000217,3]
[316046445,1709335989525,500.0,0.00021917,2]
[316046446,1709335993540,1374.07,0.00021917,2]
[316046447,1709335995310,546.58,0.00021917,2]
[316046448,1709335995644,10024.92,0.000217,3]
[316046449,1709335996857,500.0,0.00021917,2]
[316046450,1709335998810,363.90797229,0.00021999,2]
[316046451,1709335999318,1006.12,0.00021917,2]
[316046452,1709336000784,500.0,0.00021917,2]
[316046453,1709336000884,200.0,0.00021918,2]
[316046454,1709336001304,200.0,0.00021957,2]
[316046455,1709336002068,737.36,0.00021917,2]
[316046456,1709336004492,809.31,0.00021917,2]
[316046457,1709336004520,500.0,0.00021917,2]
[316046458,1709336004652,500.0,0.00021917,2]
[316046459,1709336004723,500.0,0.00021917,2]
[316046460,1709336005472,10000.0,0.00021918,2]
[316046461,1709336005860,800.0,0.00021918,2]
[316046462,1709336006219,800.0,0.00021918,2]
[316046463,1709336006468,2010.26,0.00021917,2]
[316046464,1709336006640,800.0,0.00021918,2]
[316046465,1709336006669,4000.0,0.000219,2]
[316046466,1709336007035,800.0,0.00021918,2]
[316046467,1709336007411,800.0,0.00021957,2]
[316046468,1709336008951,500.0,0.00021917,2]
[316046469,1709336009304,158.8862144,0.00021917,2]
[316046470,1709336009360,500.0,0.00021917,2]
[316046471,1709336009505,500.0,0.00021917,2]
[316046472,1709336011931,500.0,0.00021917,2]
[316046473,1709336012162,500.0,0.00021917,2]
[316046474,1709336012582,102732.972,0.00021914,2]
[316046475,1709336012608,102732.973,0.00021914,2]
[316046476,1709336012634,75642.42,0.000217,3]
[316046477,1709336012661,102732.973,0.00021914,2]
[316046478,1709336012765,6284.625,0.00021692,2]
[316046479,1709336012816,102732.972,0.00021914,2]
[316046480,1709336012862,102732.973,0.00021914,2]
[316046481,1709336012888,6284.625,0.00021692,2]
[316046482,1709336012918,6284.625,0.00021692,2]
[316046483,1709336012944,6284.625,0.00021692,2]
[316046484,1709336012971,6284.625,0.00021692,2]
[316046485,1709336013016,1793.66,0.00021917,2]
[316046488,1709336016834,200.0,0.00021837,2]
[316046489,1709336017475,576.93,0.00021917,2]
[316046490,1709336017818,7307.2,0.00021917,2]
[316046491,1709336017941,500.0,0.00021917,2]
[316046492,1709336019476,500.0,0.00021917,2]
[316046493,1709336019604,965.81,0.00021917,2]
[316046494,1709336020084,200.0,0.00021869,2]
[316046495,1709336020190,500.0,0.00021917,2]
[316046496,1709336020903,500.0,0.00021917,2]
[316046497,1709336022213,37356.78,0.000217,3]
[316046498,1709336022369,500.0,0.00021917,2]
[316046499,1709336022412,500.0,0.00021917,2]
[316046500,1709336023533,500.0,0.00021917,2]
[316046501,1709336023616,779.96,0.00021917,2]
[316046502,1709336027379,657.64,0.00021917,2]
[316046503,1709336028304,500.0,0.00021869,2]
[316046504,1709336029980,500.0,0.00021917,2]
[316046505,1709336031529,500.0,0.00021917,2]
[316046506,1709336032873,200.0,0.00021869,2]
[316046507,1709336032989,500.0,0.00021917,2]
[316046508,1709336033499,500.0,0.00021917,2]
[316046509,1709336035731,500.0,0.00021917,2]
[316046510,1709336036805,500.0,0.00021917,2]
[316046511,1709336037254,563.88,0.00021917,2]
[316046512,1709336038060,500.0,0.00021917,2]
[316046513,1709336038737,1089.3,0.00021917,2]
[316046514,1709336039220,516.44833242,0.00021917,2]
[316046515,1709336041105,2515.97,0.00021917,2]
[316046516,1709336041215,500.0,0.00021917,2]
[316046517,1709336041297,18342.8,0.00021917,2]
[316046518,1709336041338,500.0,0.00021917,2]
[316046519,1709336041653,500.0,0.00021917,2]
[316046520,1709336044390,-500.0,0.00021917,2]
[316046521,1709336044411,-362.76736413,0.00022,2]
[316046522,1709336044436,-1476.61175551,0.00022,2]
[316046523,1709336044457,-21175.20150682,0.00022,2]
[316046524,1709336044478,-300.0,0.00022023,2]
[316046525,1709336044499,-500.0,0.00022025,2]
[316046526,1709336044520,-500.0,0.00022025,2]
[316046527,1709336044540,-500.0,0.00022025,2]
[316046528,1709336044561,-500.0,0.00022025,2]
[316046529,1709336044582,-500.0,0.00022025,2]
[316046530,1709336044602,-522.75907229,0.00022025,2]
[316046531,1709336044623,-500.0,0.00022025,2]
[316046532,1709336044643,-500.0,0.00022025,2]
[316046533,1709336044664,-500.0,0.00022025,2]
[316046534,1709336044689,-500.0,0.00022025,2]
[316046535,1709336044711,-500.0,0.00022025,2]
[316046536,1709336044733,-500.0,0.00022025,2]
[316046537,1709336044755,-500.0,0.00022025,2]
[316046538,1709336044780,-2776.31,0.00022025,2]
[316046539,1709336044802,-500.0,0.00022025,2]
[316046540,1709336044823,-500.0,0.00022025,2]
[316046541,1709336044845,-500.0,0.00022025,2]
[316046542,1709336044867,-500.0,0.00022025,2]
[316046543,1709336044889,-500.0,0.00022025,2]
[316046544,1709336044911,-500.0,0.00022025,2]
[316046545,1709336044937,-1153.56,0.00022025,2]
[316046546,1709336044959,-500.0,0.00022025,2]
[316046547,1709336044980,-855.37,0.00022025,2]
[316046548,1709336045003,-890.74,0.00022025,2]
[316046549,1709336045026,-500.0,0.00022025,2]
[316046550,1709336045052,-500.0,0.00022025,2]
[316046551,1709336045076,-500.0,0.00022025,2]
[316046552,1709336045100,-500.0,0.00022025,2]
[316046553,1709336045123,-500.0,0.00022025,2]
[316046554,1709336045146,-500.0,0.00022025,2]
[316046555,1709336045172,-1113.77,0.00022025,2]
[316046556,1709336045198,-965.99,0.00022025,2]
[316046557,1709336045224,-500.0,0.00022025,2]
[316046558,1709336045249,-4160.05,0.00022025,2]
[316046559,1709336045275,-579.17,0.00022025,2]
[316046560,1709336045298,-500.0,0.00022025,2]
[316046561,1709336045324,-500.0,0.00022025,2]
[316046562,1709336045348,-500.0,0.00022025,2]
[316046563,1709336045374,-4608.17,0.00022025,2]
[316046564,1709336045399,-500.0,0.00022025,2]
[316046565,1709336045426,-500.0,0.00022025,2]
[316046566,1709336045451,-500.0,0.00022025,2]
[316046567,1709336045478,-25351.59,0.00022025,2]
[316046568,1709336045502,-500.0,0.00022025,2]
[316046569,1709336045525,-757.27,0.00022025,2]
[316046570,1709336045548,-500.0,0.00022025,2]
[316046571,1709336045570,-500.0,0.00022025,2]
[316046572,1709336045593,-1190.16,0.00022025,2]
[316046573,1709336045616,-500.0,0.00022025,2]
[316046574,1709336045640,-500.0,0.00022025,2]
[316046575,1709336045663,-500.0,0.00022025,2]
[316046576,1709336045690,-500.0,0.00022025,2]
[316046577,1709336045714,-500.0,0.00022025,2]
[316046578,1709336045738,-500.0,0.00022025,2]
[316046579,1709336045760,-793.33,0.00022025,2]
[316046580,1709336045782,-500.0,0.00022025,2]
[316046581,1709336045809,-500.0,0.00022025,2]
[316046582,1709336045832,-840.78,0.00022025,2]
[316046583,1709336045853,-500.0,0.00022025,2]
[316046584,1709336045875,-500.0,0.00022025,2]
[316046585,1709336045898,-500.0,0.00022025,2]
[316046586,1709336046091,-500.0,0.00022025,2]
[316046587,1709336046164,-500.0,0.00022025,2]
[316046588,1709336046197,-1147.57,0.00022025,2]
[316046589,1709336046221,-500.0,0.00022025,2]
[316046590,1709336046244,-500.0,0.00022025,2]
[316046591,1709336046268,-1815.66,0.00022025,2]
[316046592,1709336046292,-500.0,0.00022025,2]
[316046593,1709336046313,-500.0,0.00022025,2]
[316046594,1709336046335,-586.03,0.00022025,2]
[316046595,1709336046358,-541.12,0.00022025,2]
[316046596,1709336046380,-844.64,0.00022025,2]
[316046597,1709336046403,-500.0,0.00022025,2]
[316046598,1709336046425,-502.74,0.00022025,2]
[316046599,1709336046452,-500.0,0.00022025,2]
[316046600,1709336046476,-581.18,0.00022025,2]
[316046601,1709336046499,-500.0,0.00022025,2]
[316046602,1709336046522,-510.89,0.00022025,2]
[316046603,1709336046545,-500.0,0.00022025,2]
[316046604,1709336046568,-500.0,0.00022025,2]
[316046605,1709336046590,-500.0,0.00022025,2]
[316046606,1709336046612,-500.0,0.00022025,2]
[316046607,1709336046635,-1584.36,0.00022025,2]
[316046608,1709336046658,-500.0,0.00022025,2]
[316046609,1709336046682,-500.0,0.00022025,2]
[316046610,1709336046704,-602.18,0.00022025,2]
[316046611,1709336046725,-500.0,0.00022025,2]
[316046612,1709336046747,-500.0,0.00022025,2]
[316046613,1709336046770,-500.0,0.00022025,2]
[316046614,1709336046790,-500.0,0.00022025,2]
[316046615,1709336046811,-500.0,0.00022025,2]
[316046616,1709336046832,-500.0,0.00022025,2]
[316046617,1709336046853,-500.0,0.00022025,2]
[316046618,1709336046874,-517.74211184,0.00022025,2]
[316046619,1709336046895,-656.39,0.00022025,2]
[316046620,1709336046918,-500.0,0.00022025,2]
[316046621,1709336046941,-859.52,0.00022025,2]
[316046622,1709336046962,-789.21,0.00022025,2]
[316046623,1709336046985,-565.4106753,0.00022025,2]
[316046624,1709336047006,-500.0,0.00022025,2]
[316046625,1709336047034,-500.0,0.00022025,2]
[316046626,1709336047055,-567.6470903,0.00022025,2]
[316046627,1709336047077,-3264.74,0.00022025,2]
[316046628,1709336047098,-601.05,0.00022025,2]
[316046629,1709336047119,-500.0,0.00022025,2]
[316046630,1709336047139,-1440.75,0.00022025,2]
[316046631,1709336047160,-500.0,0.00022025,2]
[316046632,1709336047184,-500.0,0.00022025,2]
[316046633,1709336047205,-2748.89,0.00022025,2]
[316046634,1709336047226,-503.42967175,0.00022025,2]
[316046635,1709336047248,-500.0,0.00022025,2]
[316046636,1709336047270,-902.55,0.00022025,2]
[316046637,1709336047292,-500.0,0.00022025,2]
[316046638,1709336047313,-910.45,0.00022025,2]
[316046639,1709336047336,-1714.0,0.00022025,2]
[316046640,1709336047357,-500.0,0.00022025,2]
[316046641,1709336047381,-500.0,0.00022025,2]
[316046642,1709336047402,-500.0,0.00022025,2]
[316046643,1709336047423,-500.0,0.00022025,2]
[316046644,1709336047444,-500.0,0.00022025,2]
[316046645,1709336047466,-2482.98,0.00022025,2]
[316046646,1709336047487,-1347.02,0.00022025,2]
[316046647,1709336047509,-500.0,0.00022025,2]
[316046648,1709336047530,-2051.01,0.00022025,2]
[316046649,1709336047551,-500.0,0.00022025,2]
[316046650,1709336047572,-568.29,0.00022025,2]
[316046651,1709336047593,-500.0,0.00022025,2]
[316046652,1709336047613,-500.0,0.00022025,2]
[316046653,1709336047637,-1549.43,0.00022025,2]
[316046654,1709336047657,-500.0,0.00022025,2]
[316046655,1709336047678,-1784.11,0.00022025,2]
[316046656,1709336047699,-500.0,0.00022025,2]
[316046657,1709336047721,-622.48,0.00022025,2]
[316046658,1709336047742,-831.2,0.00022025,2]
[316046659,1709336047763,-525.1,0.00022025,2]
[316046660,1709336047783,-500.0,0.00022025,2]
[316046661,1709336047804,-500.0,0.00022025,2]
[316046662,1709336047826,-2729.73,0.00022025,2]
[316046663,1709336047846,-762.43,0.00022025,2]
[316046664,1709336047867,-1022.8,0.00022025,2]
[316046665,1709336047888,-2464.71,0.00022025,2]
[316046666,1709336047909,-1293.2,0.00022025,2]
[316046667,1709336047930,-599.07,0.00022025,2]
[316046668,1709336047951,-339.37967949,0.00022025,2]
[316046669,1709336047972,-500.0,0.00022025,2]
[316046670,1709336047994,-1446.77,0.00022025,2]
[316046671,1709336048015,-1132.54,0.00022025,2]
[316046672,1709336048037,-500.0,0.00022025,2]
[316046673,1709336048059,-500.0,0.00022025,2]
[316046674,1709336048081,-500.0,0.00022025,2]
[316046675,1709336048103,-1624.81,0.00022025,2]
[316046676,1709336048127,-2039.62,0.00022025,2]
[316046677,1709336048149,-500.0,0.00022025,2]
[316046678,1709336048171,-2473.77,0.00022025,2]
[316046679,1709336048194,-500.0,0.00022025,2]
[316046680,1709336048216,-1340.68,0.00022025,2]
[316046681,1709336048239,-500.0,0.00022025,2]
[316046682,1709336048261,-608.61,0.00022025,2]
[316046683,1709336048286,-506.29947746,0.00022025,2]
[316046684,1709336048365,-926.47,0.00022025,2]
[316046685,1709336048388,-500.0,0.00022025,2]
[316046686,1709336048409,-616.23,0.00022025,2]
[316046687,1709336048432,-500.0,0.00022025,2]
[316046688,1709336048453,-500.0,0.00022025,2]
[316046689,1709336048474,-583.53,0.00022025,2]
[316046690,1709336048497,-1128.92,0.00022025,2]
[316046691,1709336048519,-960.58,0.00022027,2]
[316046692,1709336048539,-204.04097739,0.00022027,2]
[316046693,1709336048561,-500.0,0.00022027,2]
[316046694,1709336048583,-500.0,0.00022027,2]
[316046695,1709336048604,-500.0,0.00022027,2]
[316046696,1709336048625,-500.0,0.00022027,2]
[316046697,1709336048646,-500.0,0.00022027,2]
[316046698,1709336048667,-500.0,0.00022027,2]
[316046699,1709336048689,-500.0,0.00022027,2]